[Event "Late-Titled-Tuesday-Blitz-March-26-2024"]
[Site "Chess.com"]
[Date "2024.03.26"]
[Round "4"]
[White "NMJeevanK"]
[Black "alexrustemov"]
[Result "0-1"]
[WhiteElo "2615"]
[BlackElo "2919"]
[TimeControl "180+1"]
[EndTime "14:41:33 PDT"]
[Termination "alexrustemov won by resignation"]

1. e4 {[%clk 0:03:00.9]} 1... e6 {[%clk 0:03:00]} 2. d3 {[%clk 0:02:58.5]} 2...
c5 {[%clk 0:02:59.4]} 3. Nf3 {[%clk 0:02:53.6]} 3... Nc6 {[%clk 0:02:59.6]} 4.
g3 {[%clk 0:02:52.7]} 4... g6 {[%clk 0:02:58.8]} 5. Bg2 {[%clk 0:02:52.9]} 5...
Bg7 {[%clk 0:02:59.2]} 6. O-O {[%clk 0:02:53.4]} 6... Nge7 {[%clk 0:02:59.3]} 7.
Re1 {[%clk 0:02:53.9]} 7... d6 {[%clk 0:02:59]} 8. c3 {[%clk 0:02:51.8]} 8... e5
{[%clk 0:02:58.3]} 9. Bg5 {[%clk 0:02:47.8]} 9... h6 {[%clk 0:02:57.1]} 10. Bxe7
{[%clk 0:02:48]} 10... Qxe7 {[%clk 0:02:56.6]} 11. Nbd2 {[%clk 0:02:46]} 11...
O-O {[%clk 0:02:56.3]} 12. Nc4 {[%clk 0:02:44.8]} 12... Be6 {[%clk 0:02:54.6]}
13. Ne3 {[%clk 0:02:44.9]} 13... f5 {[%clk 0:02:41.6]} 14. Nh4 {[%clk 0:02:36]}
14... Qf7 {[%clk 0:02:40.7]} 15. exf5 {[%clk 0:02:31.8]} 15... gxf5 {[%clk
0:02:40.6]} 16. f4 {[%clk 0:02:18.8]} 16... exf4 {[%clk 0:02:35.1]} 17. gxf4
{[%clk 0:02:19.7]} 17... d5 {[%clk 0:02:30.8]} 18. c4 {[%clk 0:01:59.8]} 18...
dxc4 {[%clk 0:02:26.2]} 19. Nxc4 {[%clk 0:01:55.1]} 19... Rad8 {[%clk
0:02:18.5]} 20. Qe2 {[%clk 0:01:34.7]} 20... Nd4 {[%clk 0:02:12.9]} 21. Qf1
{[%clk 0:01:30.3]} 21... Nc2 {[%clk 0:02:07.7]} 22. Rxe6 {[%clk 0:01:03.9]}
22... Qxe6 {[%clk 0:02:03.3]} 23. Rc1 {[%clk 0:01:04.8]} 23... Ne3 {[%clk
0:01:49.5]} 24. Nxe3 {[%clk 0:00:53.3]} 24... Qxe3+ {[%clk 0:01:48.7]} 25. Kh1
{[%clk 0:00:53.9]} 25... Qxd3 {[%clk 0:01:35.2]} 26. Qf2 {[%clk 0:00:40.8]}
26... Bd4 {[%clk 0:01:31.5]} 27. Qe1 {[%clk 0:00:36.8]} 27... Rfe8 {[%clk
0:01:28.7]} 28. Qa5 {[%clk 0:00:28.9]} 28... Qe3 {[%clk 0:01:11.1]} 29. Rf1
{[%clk 0:00:27.8]} 29... Qe6 {[%clk 0:00:44.2]} 30. Qxa7 {[%clk 0:00:27.8]}
30... b5 {[%clk 0:00:41.7]} 31. Qa3 {[%clk 0:00:25.1]} 31... Kh7 {[%clk
0:00:38.3]} 32. Qh3 {[%clk 0:00:20.6]} 32... Rf8 {[%clk 0:00:36.6]} 33. Nf3
{[%clk 0:00:21]} 33... Bf6 {[%clk 0:00:33.7]} 34. Re1 {[%clk 0:00:20.4]} 34...
Qd7 {[%clk 0:00:32.7]} 35. Bf1 {[%clk 0:00:15]} 35... c4 {[%clk 0:00:31.9]} 36.
Qh5 {[%clk 0:00:12]} 36... Rfe8 {[%clk 0:00:30.2]} 37. Ne5 {[%clk 0:00:11]}
37... Bxe5 {[%clk 0:00:28.4]} 38. fxe5 {[%clk 0:00:11.9]} 38... Qe6 {[%clk
0:00:25.7]} 39. Bh3 {[%clk 0:00:11.4]} 39... Rf8 {[%clk 0:00:24.4]} 40. Rf1
{[%clk 0:00:11.2]} 40... b4 {[%clk 0:00:07.7]} 41. Bxf5+ {[%clk 0:00:05.9]}
41... Rxf5 {[%clk 0:00:07.7]} 42. Rxf5 {[%clk 0:00:04.4]} 42... Qd5+ {[%clk
0:00:04.9]} 43. Rf3 {[%clk 0:00:04.6]} 43... Rf8 {[%clk 0:00:03.7]} 44. Kg2
{[%clk 0:00:04.3]} 44... c3 {[%clk 0:00:03.7]} 45. bxc3 {[%clk 0:00:03.8]} 45...
bxc3 {[%clk 0:00:04.3]} 46. Kg3 {[%clk 0:00:03.8]} 46... Qxf3+ {[%clk
0:00:04.6]} 47. Qxf3 {[%clk 0:00:04.2]} 47... Rxf3+ {[%clk 0:00:05.2]} 48. Kxf3
{[%clk 0:00:05.1]} 48... c2 {[%clk 0:00:05.7]} 49. e6 {[%clk 0:00:06]} 49... Kg6
{[%clk 0:00:06]} 50. e7 {[%clk 0:00:05.7]} 50... Kf7 {[%clk 0:00:06.3]} 0-1

[Event "Late-Titled-Tuesday-Blitz-March-26-2024"]
[Site "Chess.com"]
[Date "2024.03.26"]
[Round "4"]
[White "PepeCuenca"]
[Black "xxysoul6"]
[Result "0-1"]
[WhiteElo "2731"]
[BlackElo "3013"]
[TimeControl "180+1"]
[EndTime "14:41:41 PDT"]
[Termination "xxysoul6 won on time"]

1. d4 {[%clk 0:03:00.9]} 1... Nf6 {[%clk 0:02:54.1]} 2. Bf4 {[%clk 0:03:01.4]}
2... b6 {[%clk 0:02:52.9]} 3. Nc3 {[%clk 0:02:58.5]} 3... Bb7 {[%clk 0:02:53.2]}
4. f3 {[%clk 0:02:58.9]} 4... e6 {[%clk 0:02:48.3]} 5. e4 {[%clk 0:02:58.2]}
5... Bb4 {[%clk 0:02:48.1]} 6. Ne2 {[%clk 0:02:53.8]} 6... O-O {[%clk
0:02:46.6]} 7. a3 {[%clk 0:02:51]} 7... Be7 {[%clk 0:02:46.5]} 8. Nb5 {[%clk
0:02:35.4]} 8... d6 {[%clk 0:02:34.5]} 9. c4 {[%clk 0:02:35.3]} 9... Nh5 {[%clk
0:02:31.7]} 10. Be3 {[%clk 0:02:30.7]} 10... f5 {[%clk 0:02:29.8]} 11. exf5
{[%clk 0:02:24.1]} 11... exf5 {[%clk 0:02:30]} 12. d5 {[%clk 0:02:19.1]} 12...
Re8 {[%clk 0:02:11.3]} 13. Qd2 {[%clk 0:02:02.5]} 13... c6 {[%clk 0:01:54.1]}
14. dxc6 {[%clk 0:01:56.5]} 14... Nxc6 {[%clk 0:01:55]} 15. O-O-O {[%clk
0:00:55.1]} 15... Na5 {[%clk 0:01:11]} 16. Qc2 {[%clk 0:00:52.6]} 16... Rc8
{[%clk 0:01:00.2]} 17. Nec3 {[%clk 0:00:50.3]} 17... Bf6 {[%clk 0:00:52.1]} 18.
Bd4 {[%clk 0:00:42.5]} 18... Bg5+ {[%clk 0:00:37.7]} 19. Kb1 {[%clk 0:00:41.2]}
19... Nxc4 {[%clk 0:00:37.6]} 20. Bxc4+ {[%clk 0:00:39.7]} 20... Rxc4 {[%clk
0:00:36.9]} 21. Bxg7 {[%clk 0:00:22.3]} 21... Nxg7 {[%clk 0:00:28.1]} 22. Nxd6
{[%clk 0:00:22.5]} 22... Rc7 {[%clk 0:00:21]} 23. Nxb7 {[%clk 0:00:17.6]} 23...
Rd7 {[%clk 0:00:21.1]} 24. Qb3+ {[%clk 0:00:11.9]} 24... Kf8 {[%clk 0:00:20]}
25. Nb5 {[%clk 0:00:06.2]} 25... Qe7 {[%clk 0:00:15.3]} 26. Rxd7 {[%clk
0:00:04.9]} 26... Qxd7 {[%clk 0:00:15.4]} 27. N7d6 {[%clk 0:00:05.6]} 27... Re6
{[%clk 0:00:12.8]} 28. Rd1 {[%clk 0:00:04.7]} 28... a6 {[%clk 0:00:13.1]} 29.
Nxf5 {[%clk 0:00:04]} 29... Qxb5 {[%clk 0:00:13.2]} 30. Qxb5 {[%clk 0:00:02.6]}
30... axb5 {[%clk 0:00:14.1]} 31. Nxg7 {[%clk 0:00:02.8]} 31... Kxg7 {[%clk
0:00:15]} 32. Rd5 {[%clk 0:00:03.1]} 32... Be3 {[%clk 0:00:13.2]} 33. Rxb5
{[%clk 0:00:03.1]} 33... Rh6 {[%clk 0:00:11.6]} 34. h3 {[%clk 0:00:03.1]} 34...
Rg6 {[%clk 0:00:12]} 35. g4 {[%clk 0:00:02.6]} 35... Rh6 {[%clk 0:00:12.6]} 36.
Rb3 {[%clk 0:00:02.2]} 36... Bf4 {[%clk 0:00:12.6]} 37. Rb5 {[%clk 0:00:01.9]}
37... Rxh3 {[%clk 0:00:12.5]} 38. Rxb6 {[%clk 0:00:02.4]} 38... Rxf3 {[%clk
0:00:13.1]} 39. a4 {[%clk 0:00:02.5]} 39... Be3 {[%clk 0:00:08.1]} 40. Rb3
{[%clk 0:00:02.5]} 40... Kg6 {[%clk 0:00:06]} 41. a5 {[%clk 0:00:02.4]} 41...
Kg5 {[%clk 0:00:06.2]} 42. a6 {[%clk 0:00:02.6]} 42... Kxg4 {[%clk 0:00:06.7]}
43. Rb7 {[%clk 0:00:02.2]} 43... h5 {[%clk 0:00:07.3]} 44. a7 {[%clk 0:00:02.8]}
44... Rf8 {[%clk 0:00:08]} 45. Rb8 {[%clk 0:00:03.4]} 45... Rf1+ {[%clk
0:00:08.5]} 46. Ka2 {[%clk 0:00:03.1]} 46... Bxa7 {[%clk 0:00:09.2]} 47. Rb7
{[%clk 0:00:03.2]} 47... Be3 {[%clk 0:00:08.7]} 48. Rb3 {[%clk 0:00:02.6]} 48...
Bf4 {[%clk 0:00:08.3]} 49. Rb7 {[%clk 0:00:02.4]} 49... h4 {[%clk 0:00:08.7]}
50. Rg7+ {[%clk 0:00:03.3]} 50... Bg5 {[%clk 0:00:09.1]} 51. b4 {[%clk
0:00:02.9]} 51... h3 {[%clk 0:00:09.6]} 52. Kb3 {[%clk 0:00:02.9]} 52... h2
{[%clk 0:00:09.9]} 53. Ka4 {[%clk 0:00:03.1]} 53... h1=Q {[%clk 0:00:09.9]} 54.
Rxg5+ {[%clk 0:00:02]} 54... Kxg5 {[%clk 0:00:09.6]} 0-1

[Event "Late-Titled-Tuesday-Blitz-March-26-2024"]
[Site "Chess.com"]
[Date "2024.03.26"]
[Round "4"]
[White "promen1999"]
[Black "sotochess"]
[Result "1-0"]
[WhiteElo "2835"]
[BlackElo "2596"]
[TimeControl "180+1"]
[EndTime "14:41:41 PDT"]
[Termination "promen1999 won on time"]

1. e4 {[%clk 0:03:00.9]} 1... c5 {[%clk 0:02:57.1]} 2. Nf3 {[%clk 0:03:00.5]}
2... e6 {[%clk 0:02:47]} 3. c3 {[%clk 0:02:57.1]} 3... d5 {[%clk 0:02:45.7]} 4.
e5 {[%clk 0:02:56.7]} 4... d4 {[%clk 0:02:34.4]} 5. d3 {[%clk 0:02:55.4]} 5...
Nc6 {[%clk 0:02:34]} 6. g3 {[%clk 0:02:47.5]} 6... Nge7 {[%clk 0:02:31.6]} 7.
Bg2 {[%clk 0:02:46.3]} 7... b6 {[%clk 0:02:24.2]} 8. O-O {[%clk 0:02:44.2]} 8...
Ba6 {[%clk 0:02:17.9]} 9. cxd4 {[%clk 0:02:33.3]} 9... cxd4 {[%clk 0:02:17.5]}
10. a3 {[%clk 0:02:30.7]} 10... Bb7 {[%clk 0:02:13.7]} 11. Re1 {[%clk
0:02:30.7]} 11... Qd7 {[%clk 0:02:13.3]} 12. Nbd2 {[%clk 0:02:30.5]} 12... Ng6
{[%clk 0:02:06.9]} 13. h4 {[%clk 0:02:27.5]} 13... h6 {[%clk 0:02:00.4]} 14. b4
{[%clk 0:02:23.4]} 14... a5 {[%clk 0:01:55.3]} 15. b5 {[%clk 0:02:23]} 15... Na7
{[%clk 0:01:55]} 16. h5 {[%clk 0:02:11.4]} 16... Ne7 {[%clk 0:01:40.4]} 17. Nc4
{[%clk 0:02:05.5]} 17... Nec8 {[%clk 0:01:35.4]} 18. a4 {[%clk 0:02:04.2]} 18...
Bb4 {[%clk 0:01:29.5]} 19. Bd2 {[%clk 0:02:03.7]} 19... Bc5 {[%clk 0:01:29]} 20.
Rc1 {[%clk 0:01:55.7]} 20... Qe7 {[%clk 0:01:16.7]} 21. Nh2 {[%clk 0:01:49.5]}
21... Bxg2 {[%clk 0:01:15.9]} 22. Kxg2 {[%clk 0:01:50.4]} 22... O-O {[%clk
0:01:06.7]} 23. Qg4 {[%clk 0:01:48.9]} 23... Kh8 {[%clk 0:01:06.2]} 24. Nf3
{[%clk 0:01:45.8]} 24... Rd8 {[%clk 0:01:03.2]} 25. Re4 {[%clk 0:01:41.1]} 25...
Qf8 {[%clk 0:00:44.6]} 26. Qh3 {[%clk 0:00:54.3]} 26... Ne7 {[%clk 0:00:42.4]}
27. g4 {[%clk 0:00:54.9]} 27... Nd5 {[%clk 0:00:35.4]} 28. g5 {[%clk 0:00:53.7]}
28... Nc3 {[%clk 0:00:33.3]} 29. Rg4 {[%clk 0:00:52.2]} 29... Nxa4 {[%clk
0:00:27.9]} 30. gxh6 {[%clk 0:00:48.5]} 30... gxh6 {[%clk 0:00:27.7]} 31. Kh2
{[%clk 0:00:43]} 31... Nxb5 {[%clk 0:00:24.7]} 32. Rcg1 {[%clk 0:00:43.1]} 32...
Nac3 {[%clk 0:00:21.1]} 33. Qg2 {[%clk 0:00:30.8]} 33... Ne2 {[%clk 0:00:15.4]}
34. Rh1 {[%clk 0:00:20.4]} 34... Nbc3 {[%clk 0:00:15]} 35. Nh4 {[%clk
0:00:19.7]} 35... Be7 {[%clk 0:00:13.7]} 36. Ng6+ {[%clk 0:00:19.1]} 36... fxg6
{[%clk 0:00:13.1]} 37. Rxg6 {[%clk 0:00:20]} 37... Bg5 {[%clk 0:00:12.2]} 38.
Bxg5 {[%clk 0:00:18.3]} 38... hxg5 {[%clk 0:00:12]} 39. Rf6 {[%clk 0:00:18.9]}
39... Qg7 {[%clk 0:00:11.4]} 40. h6 {[%clk 0:00:18]} 40... Qg8 {[%clk
0:00:11.6]} 41. Nd6 {[%clk 0:00:15.5]} 41... Nf4 {[%clk 0:00:11]} 42. Qg4 {[%clk
0:00:15.7]} 42... Rxd6 {[%clk 0:00:10.2]} 43. exd6 {[%clk 0:00:15.7]} 43... a4
{[%clk 0:00:09.5]} 44. Rg1 {[%clk 0:00:14.8]} 44... a3 {[%clk 0:00:08]} 45. d7
{[%clk 0:00:15.2]} 45... Rd8 {[%clk 0:00:07.3]} 46. Qxg5 {[%clk 0:00:15]} 46...
Qxg5 {[%clk 0:00:06]} 47. Rxg5 {[%clk 0:00:15.9]} 47... a2 {[%clk 0:00:06.3]}
48. Rg1 {[%clk 0:00:14.6]} 48... Nb1 {[%clk 0:00:06.1]} 49. Rf7 {[%clk
0:00:13.5]} 49... a1=Q {[%clk 0:00:02.2]} 50. Rgg7 {[%clk 0:00:14.1]} 50... Nh5
{[%clk 0:00:02]} 51. Rh7+ {[%clk 0:00:11.2]} 1-0

[Event "Late-Titled-Tuesday-Blitz-March-26-2024"]
[Site "Chess.com"]
[Date "2024.03.26"]
[Round "4"]
[White "noblerone"]
[Black "carloseduar100"]
[Result "1/2-1/2"]
[WhiteElo "2526"]
[BlackElo "2252"]
[TimeControl "180+1"]
[EndTime "14:41:41 PDT"]
[Termination "Game drawn by repetition"]

1. d4 {[%clk 0:03:00.9]} 1... d5 {[%clk 0:02:59.6]} 2. c4 {[%clk 0:02:59.2]}
2... e5 {[%clk 0:02:59.5]} 3. dxe5 {[%clk 0:02:54.5]} 3... d4 {[%clk 0:03:00.4]}
4. a3 {[%clk 0:02:55]} 4... Nc6 {[%clk 0:03:00.5]} 5. Nf3 {[%clk 0:02:54.3]}
5... Nge7 {[%clk 0:03:00.9]} 6. e3 {[%clk 0:02:53.4]} 6... Bg4 {[%clk
0:02:59.7]} 7. Be2 {[%clk 0:02:51]} 7... dxe3 {[%clk 0:02:59.3]} 8. Bxe3 {[%clk
0:02:48.6]} 8... Qxd1+ {[%clk 0:02:57.8]} 9. Bxd1 {[%clk 0:02:48.4]} 9... Ng6
{[%clk 0:02:58.4]} 10. O-O {[%clk 0:02:39.9]} 10... O-O-O {[%clk 0:02:55.9]} 11.
Nc3 {[%clk 0:02:38.5]} 11... Bxf3 {[%clk 0:02:53.8]} 12. Bxf3 {[%clk 0:02:37.9]}
12... Ngxe5 {[%clk 0:02:54.7]} 13. Be2 {[%clk 0:02:34.3]} 13... Nd4 {[%clk
0:02:53.9]} 14. Bxd4 {[%clk 0:02:30.4]} 14... Rxd4 {[%clk 0:02:54.8]} 15. Rfd1
{[%clk 0:02:26.4]} 15... Rxd1+ {[%clk 0:02:51]} 16. Rxd1 {[%clk 0:02:26.1]}
16... c6 {[%clk 0:02:51.6]} 17. Ne4 {[%clk 0:02:17.1]} 17... Be7 {[%clk
0:02:51.2]} 18. Kf1 {[%clk 0:02:09.6]} 18... f5 {[%clk 0:02:50.7]} 19. Nd2
{[%clk 0:02:03.1]} 19... Rd8 {[%clk 0:02:49.4]} 20. Ke1 {[%clk 0:01:59.3]} 20...
Bf6 {[%clk 0:02:48.8]} 21. b3 {[%clk 0:01:47]} 21... g6 {[%clk 0:02:34.6]} 22.
h3 {[%clk 0:01:40.8]} 22... Kc7 {[%clk 0:02:34.5]} 23. Nf3 {[%clk 0:01:38]}
23... Nxf3+ {[%clk 0:02:33]} 24. Bxf3 {[%clk 0:01:38]} 24... Bc3+ {[%clk
0:02:13.6]} 25. Ke2 {[%clk 0:01:32]} 25... Rxd1 {[%clk 0:02:11.1]} 26. Kxd1
{[%clk 0:01:31.6]} 26... Bd4 {[%clk 0:02:10.2]} 27. Ke2 {[%clk 0:01:30.5]} 27...
a5 {[%clk 0:02:04.6]} 28. a4 {[%clk 0:01:27.2]} 28... Kd6 {[%clk 0:02:00.6]} 29.
g4 {[%clk 0:01:27.4]} 29... fxg4 {[%clk 0:01:59.9]} 30. Bxg4 {[%clk 0:01:27.1]}
30... g5 {[%clk 0:01:56.6]} 31. Bc8 {[%clk 0:01:26.8]} 31... b6 {[%clk
0:01:55.3]} 32. Bf5 {[%clk 0:01:25.9]} 32... h6 {[%clk 0:01:55.3]} 33. f3 {[%clk
0:01:26.3]} 33... Kc5 {[%clk 0:01:55.2]} 34. Kd3 {[%clk 0:01:26.6]} 34... Bf6
{[%clk 0:01:37.8]} 35. Bd7 {[%clk 0:01:24.6]} 35... Kd6 {[%clk 0:01:34.6]} 36.
Be8 {[%clk 0:01:23.5]} 36... Be5 {[%clk 0:01:10]} 37. Ke4 {[%clk 0:01:22.3]}
37... Bf4 {[%clk 0:01:03]} 38. h4 {[%clk 0:01:19.9]} 38... Bc1 {[%clk
0:00:55.7]} 39. h5 {[%clk 0:01:18.9]} 39... Kc5 {[%clk 0:00:49.8]} 40. Kf5
{[%clk 0:01:18.2]} 40... Kb4 {[%clk 0:00:48.6]} 41. Bxc6 {[%clk 0:01:16.2]}
41... Kxb3 {[%clk 0:00:48.9]} 42. Bb5 {[%clk 0:01:15.7]} 42... Kc3 {[%clk
0:00:48.8]} 43. Kg6 {[%clk 0:01:15.2]} 43... Kd4 {[%clk 0:00:49.4]} 44. Kf5
{[%clk 0:00:46.9]} 44... Ke3 {[%clk 0:00:42.8]} 45. Bc6 {[%clk 0:00:45.2]} 45...
Kf2 {[%clk 0:00:42.4]} 46. Kg6 {[%clk 0:00:43.6]} 46... Kg3 {[%clk 0:00:37]} 47.
Bb7 {[%clk 0:00:40.8]} 47... Be3 {[%clk 0:00:35.9]} 48. Bc6 {[%clk 0:00:39.7]}
48... Bc1 {[%clk 0:00:35.5]} 49. Kf5 {[%clk 0:00:39.5]} 49... Kh4 {[%clk
0:00:33.1]} 50. Kg6 {[%clk 0:00:38.8]} 50... Bd2 {[%clk 0:00:32.9]} 51. Bd7
{[%clk 0:00:38.1]} 51... g4 {[%clk 0:00:22.4]} 52. Bxg4 {[%clk 0:00:37.4]} 52...
Kg3 {[%clk 0:00:22.6]} 53. Kf5 {[%clk 0:00:37.3]} 53... Bg5 {[%clk 0:00:20.4]}
54. Ke5 {[%clk 0:00:35.9]} 54... Be3 {[%clk 0:00:20.5]} 55. Ke4 {[%clk
0:00:33.6]} 55... Bf4 {[%clk 0:00:20.9]} 56. Bf5 {[%clk 0:00:33.4]} 56... Bg5
{[%clk 0:00:20.6]} 57. Bg6 {[%clk 0:00:33.5]} 57... Bf4 {[%clk 0:00:20.9]} 58.
Be8 {[%clk 0:00:32.9]} 58... Bg5 {[%clk 0:00:21.2]} 59. Bc6 {[%clk 0:00:33.3]}
59... Bf4 {[%clk 0:00:21.7]} 60. Bd7 {[%clk 0:00:29.9]} 60... Bg5 {[%clk
0:00:21.8]} 61. Bg4 {[%clk 0:00:30.8]} 61... Bf4 {[%clk 0:00:22.3]} 62. Kd5
{[%clk 0:00:31.3]} 62... Be3 {[%clk 0:00:22.7]} 63. Ke5 {[%clk 0:00:30.2]} 63...
Bf4+ {[%clk 0:00:22.8]} 64. Ke6 {[%clk 0:00:30.3]} 64... Bg5 {[%clk 0:00:23.2]}
65. Kd7 {[%clk 0:00:29.7]} 65... Be3 {[%clk 0:00:23.6]} 66. Kc6 {[%clk 0:00:30]}
66... Kf4 {[%clk 0:00:24.2]} 67. Kb5 {[%clk 0:00:29.4]} 67... Bc5 {[%clk
0:00:24.5]} 68. Kc6 {[%clk 0:00:29.5]} 68... Kg5 {[%clk 0:00:24.8]} 69. Kb5
{[%clk 0:00:30.4]} 69... Be3 {[%clk 0:00:25.1]} 70. Kc6 {[%clk 0:00:30.8]} 70...
Bc5 {[%clk 0:00:25.7]} 71. Kb5 {[%clk 0:00:31.7]} 71... Be3 {[%clk 0:00:26.2]}
72. Kc6 {[%clk 0:00:32.2]} 72... Bc5 {[%clk 0:00:26.8]} 1/2-1/2

[Event "Late-Titled-Tuesday-Blitz-March-26-2024"]
[Site "Chess.com"]
[Date "2024.03.26"]
[Round "4"]
[White "Hrant_ChessMood"]
[Black "1mbl4"]
[Result "1-0"]
[WhiteElo "2950"]
[BlackElo "2618"]
[TimeControl "180+1"]
[EndTime "14:41:54 PDT"]
[Termination "Hrant_ChessMood won by resignation"]

1. c4 {[%clk 0:02:59.6]} 1... Nf6 {[%clk 0:02:59.2]} 2. Nf3 {[%clk 0:02:57.8]}
2... g6 {[%clk 0:02:58.9]} 3. g3 {[%clk 0:02:57]} 3... Bg7 {[%clk 0:02:58.8]} 4.
Bg2 {[%clk 0:02:57.7]} 4... O-O {[%clk 0:02:59.3]} 5. O-O {[%clk 0:02:58.4]}
5... d6 {[%clk 0:02:59.3]} 6. Nc3 {[%clk 0:02:58.4]} 6... Nbd7 {[%clk
0:02:58.8]} 7. d3 {[%clk 0:02:57.8]} 7... e5 {[%clk 0:02:58.9]} 8. Nd2 {[%clk
0:02:55.8]} 8... Nh5 {[%clk 0:02:49.3]} 9. Rb1 {[%clk 0:02:53.5]} 9... f5 {[%clk
0:02:48.4]} 10. Qc2 {[%clk 0:02:44.2]} 10... Nhf6 {[%clk 0:02:27.9]} 11. b4
{[%clk 0:02:43.1]} 11... c6 {[%clk 0:02:12.7]} 12. b5 {[%clk 0:02:42.8]} 12...
c5 {[%clk 0:02:12.2]} 13. a4 {[%clk 0:02:38.9]} 13... g5 {[%clk 0:02:02.4]} 14.
Ra1 {[%clk 0:02:37.8]} 14... g4 {[%clk 0:01:55.1]} 15. a5 {[%clk 0:02:37.2]}
15... Rb8 {[%clk 0:01:55]} 16. Bb2 {[%clk 0:02:30.9]} 16... h5 {[%clk
0:01:52.7]} 17. Nd5 {[%clk 0:02:28.2]} 17... Nxd5 {[%clk 0:01:49.9]} 18. Bxd5+
{[%clk 0:02:27.9]} 18... Kh8 {[%clk 0:01:49]} 19. f4 {[%clk 0:02:17.7]} 19...
Qe7 {[%clk 0:01:41.6]} 20. e4 {[%clk 0:02:14.7]} 20... exf4 {[%clk 0:01:12.9]}
21. Rxf4 {[%clk 0:02:14.3]} 21... Ne5 {[%clk 0:01:04.5]} 22. Raf1 {[%clk
0:02:08.9]} 22... Qg5 {[%clk 0:01:04]} 23. exf5 {[%clk 0:02:02.2]} 23... Bxf5
{[%clk 0:01:03.4]} 24. Be4 {[%clk 0:01:57.4]} 24... Be6 {[%clk 0:00:54]} 25.
Rxf8+ {[%clk 0:01:48.2]} 25... Rxf8 {[%clk 0:00:52.6]} 26. Rxf8+ {[%clk
0:01:45.6]} 26... Bxf8 {[%clk 0:00:52.6]} 27. Nf1 {[%clk 0:01:43.6]} 27... b6
{[%clk 0:00:47.9]} 28. axb6 {[%clk 0:01:37.5]} 28... axb6 {[%clk 0:00:47.5]} 29.
Qf2 {[%clk 0:01:38.4]} 29... Bg7 {[%clk 0:00:43]} 30. Kg2 {[%clk 0:01:38.2]}
30... Qf6 {[%clk 0:00:23.8]} 31. Qxf6 {[%clk 0:01:27.9]} 31... Bxf6 {[%clk
0:00:24.7]} 32. Ne3 {[%clk 0:01:27.9]} 32... Kg7 {[%clk 0:00:22.8]} 33. Kf1
{[%clk 0:01:20.9]} 33... Nf7 {[%clk 0:00:16.8]} 34. Bxf6+ {[%clk 0:01:15.6]}
34... Kxf6 {[%clk 0:00:17.7]} 35. Bd5 {[%clk 0:01:16.5]} 35... Ne5 {[%clk
0:00:13.5]} 36. Ke2 {[%clk 0:01:04.8]} 36... Nd7 {[%clk 0:00:11]} 37. Bxe6
{[%clk 0:01:03.2]} 37... Kxe6 {[%clk 0:00:11.4]} 38. Nd5 {[%clk 0:01:04.1]}
38... Kf5 {[%clk 0:00:11.6]} 39. Kf2 {[%clk 0:01:03]} 39... Ke5 {[%clk
0:00:10.6]} 40. Ke3 {[%clk 0:01:03.1]} 40... Kf5 {[%clk 0:00:10.7]} 41. Nf4
{[%clk 0:01:00.8]} 41... Kg5 {[%clk 0:00:09.4]} 42. Ne6+ {[%clk 0:00:59]} 42...
Kf5 {[%clk 0:00:08.9]} 43. Nc7 {[%clk 0:00:59.9]} 43... Ke5 {[%clk 0:00:07.9]}
44. Nd5 {[%clk 0:00:57.8]} 44... Kf5 {[%clk 0:00:07.6]} 45. d4 {[%clk
0:00:58.5]} 45... Kg5 {[%clk 0:00:06.2]} 46. Ke4 {[%clk 0:00:58.2]} 46... Nf6+
{[%clk 0:00:03.8]} 47. Nxf6 {[%clk 0:00:57.5]} 47... Kxf6 {[%clk 0:00:04.7]} 48.
dxc5 {[%clk 0:00:43.8]} 48... dxc5 {[%clk 0:00:04.8]} 49. Kd5 {[%clk 0:00:42.4]}
49... Kf5 {[%clk 0:00:02.7]} 50. Kc6 {[%clk 0:00:43.3]} 50... Ke4 {[%clk
0:00:03.1]} 51. Kxb6 {[%clk 0:00:43.9]} 51... Kd4 {[%clk 0:00:04]} 52. Ka5
{[%clk 0:00:42.3]} 52... Kxc4 {[%clk 0:00:04.9]} 53. b6 {[%clk 0:00:43.2]} 53...
Kd3 {[%clk 0:00:05.1]} 54. b7 {[%clk 0:00:44.1]} 54... c4 {[%clk 0:00:06]} 55.
b8=Q {[%clk 0:00:44]} 55... c3 {[%clk 0:00:06.9]} 56. Qd6+ {[%clk 0:00:43.2]}
56... Ke2 {[%clk 0:00:06.8]} 57. Qe5+ {[%clk 0:00:42.9]} 57... Kd3 {[%clk
0:00:06.4]} 58. Qxh5 {[%clk 0:00:42.5]} 58... c2 {[%clk 0:00:06.4]} 59. Qg5
{[%clk 0:00:42.5]} 59... Kc3 {[%clk 0:00:05.5]} 60. Qxg4 {[%clk 0:00:36.9]}
60... c1=Q {[%clk 0:00:04.8]} 61. Qc8+ {[%clk 0:00:36.6]} 61... Kb3 {[%clk
0:00:04.8]} 62. Qxc1 {[%clk 0:00:35.2]} 1-0